bitfinex-derivatives/quotes_BTCF0:USTF0_20251111
["timestamp","ask_amount","ask_price","bid_price","bid_amount"]
[1762840961751,0.39747953,105310.0,105300.0,0.21669949]
[1762840962156,0.39747953,105310.0,105300.0,0.49669949]
[1762840962545,0.39747953,105310.0,105300.0,0.30138258]
[1762840962854,0.39747953,105310.0,105300.0,0.1320164]
[1762840963055,0.39747953,105310.0,105300.0,0.43138258]
[1762840963456,0.39747953,105310.0,105300.0,0.31170863]
[1762840964160,0.39747953,105310.0,105300.0,0.43170863]
[1762840965057,0.39747953,105310.0,105300.0,0.52670913]
[1762840965760,0.39747953,105310.0,105300.0,0.43170863]
[1762840967253,0.30248803,105310.0,105300.0,0.52670913]
[1762840968157,0.30248803,105310.0,105300.0,0.69745668]
[1762840969055,0.39747953,105310.0,105300.0,0.60245618]
[1762840972068,0.39747953,105310.0,105300.0,0.35245618]
[1762840973066,0.39747953,105310.0,105300.0,0.50245618]
[1762840974266,0.39747953,105310.0,105300.0,0.69245618]
[1762840974570,0.30248803,105310.0,105300.0,0.78745668]
[1762840975670,0.39747953,105310.0,105300.0,0.69245618]
[1762840976465,0.30248803,105310.0,105300.0,0.78745668]
[1762840979071,0.30248803,105310.0,105300.0,0.93061862]
[1762840979265,0.39747953,105310.0,105300.0,1.01530171]
[1762840979572,0.39747953,105310.0,105300.0,0.84061862]
[1762840980075,0.30248803,105310.0,105300.0,0.84061862]
[1762840980267,0.30248803,105310.0,105300.0,0.66987107]
[1762840980871,0.39747953,105310.0,105300.0,0.57490882]
[1762840983071,0.39747953,105310.0,105300.0,0.32490882]
[1762840983276,0.39747953,105310.0,105300.0,0.55455458]
[1762840983465,0.39747953,105310.0,105300.0,0.59455458]
[1762840983662,0.39747953,105310.0,105300.0,0.70455458]
[1762840983873,0.39747953,105310.0,105300.0,0.44455458]
[1762840984376,0.39747953,105310.0,105300.0,0.56455458]
[1762840984578,0.30248803,105310.0,105300.0,0.72455458]
[1762840984766,0.39747953,105310.0,105300.0,0.60490882]
[1762840984968,0.39747953,105310.0,105300.0,0.72455238]
[1762840987271,0.39747953,105310.0,105300.0,0.60490882]
[1762840987467,0.39747953,105310.0,105300.0,0.56455338]
[1762840988176,0.39747953,105310.0,105300.0,0.70455338]
[1762840989376,0.39747953,105310.0,105300.0,0.79955388]
[1762840989571,0.39747953,105310.0,105300.0,0.70455338]
[1762840989779,0.39747953,105310.0,105300.0,0.11978701]
[1762840989982,0.48216262,105310.0,105300.0,0.11978701]
[1762840990277,0.48216262,105310.0,105300.0,0.2044701]
[1762840990464,0.39747953,105310.0,105300.0,0.11978701]
[1762840990662,0.48216262,105310.0,105300.0,0.2044701]
[1762840990872,0.48216262,105310.0,105300.0,0.11978701]
[1762840991072,0.48216262,105310.0,105300.0,0.00014245]
[1762840991771,0.48216262,105310.0,105300.0,0.08482554]
[1762840992776,0.48216262,105310.0,105300.0,0.00014245]
[1762840992975,0.48216262,105310.0,105300.0,0.08482554]
[1762840994174,0.39747953,105310.0,105300.0,0.24702554]
[1762840994366,0.39747953,105310.0,105300.0,0.27670913]
[1762840994978,0.39747953,105310.0,105300.0,0.18170863]
[1762840995176,0.39747953,105310.0,105300.0,0.43670913]
[1762840995379,0.30248803,105310.0,105300.0,0.60670913]
[1762840995774,0.30248803,105310.0,105300.0,0.74859103]
[1762840997273,0.30248803,105310.0,105300.0,0.65359053]
[1762840998171,0.39747953,105310.0,105300.0,0.65359053]
[1762840998576,0.30248803,105310.0,105300.0,0.65359053]
[1762840998770,0.30248803,105310.0,105300.0,0.74859103]
[1762840998973,0.26635803,105310.0,105300.0,0.93433637]
[1762840999172,0.2612726,105310.0,105300.0,0.93433637]
[1762840999374,0.2843426,105310.0,105300.0,0.93433637]
[1762840999573,0.2843426,105310.0,105300.0,0.92823637]
[1762841000278,0.3929841,105310.0,105300.0,0.74855278]
[1762841001082,0.2979926,105310.0,105300.0,0.84355328]
[1762841002277,0.2979926,105310.0,105300.0,0.92823637]
[1762841002481,0.23591457,105310.0,105300.0,0.92823637]
[1762841002984,0.23591457,105310.0,105300.0,1.01422525]
[1762841004478,0.23591457,105310.0,105300.0,0.8434777]
[1762841004479,0.2820826,105310.0,105300.0,0.8434777]
[1762841004676,0.2820826,105310.0,105300.0,0.96289955]
[1762841004877,0.2957326,105310.0,105300.0,0.96289955]
[1762841007284,0.3907241,105310.0,105300.0,0.86789905]
[1762841007486,0.3907241,105310.0,105300.0,0.15422435]
[1762841007675,0.3907241,105310.0,105300.0,0.09698775]
[1762841007985,0.3907241,105310.0,105300.0,0.21639599]
[1762841008579,0.3907241,105310.0,105300.0,0.34639599]
[1762841008879,0.2957326,105310.0,105300.0,0.35698775]
[1762841009689,0.3907241,105310.0,105300.0,0.35698775]
[1762841011988,0.2957326,105310.0,105300.0,0.45198825]
[1762841012189,0.2741326,105310.0,105300.0,0.67855986]
[1762841012388,0.2957326,105310.0,105300.0,0.7979681]
[1762841012584,0.2957326,105310.0,105300.0,0.7826134]
[1762841012789,0.2957326,105310.0,105300.0,0.87757565]
[1762841013279,0.2957326,105310.0,105300.0,0.75816741]
[1762841013781,0.2517626,105310.0,105300.0,0.87757082]
[1762841014185,0.2741326,105310.0,105300.0,0.87757082]
[1762841014393,0.23591457,105310.0,105300.0,0.87757082]
[1762841014687,0.29353457,105310.0,105300.0,0.87756328]
[1762841014896,0.2957326,105310.0,105300.0,0.87756328]
[1762841015086,0.2517626,105310.0,105300.0,0.87756328]
[1762841017095,0.2741326,105310.0,105300.0,0.87756328]
[1762841017296,0.2957326,105310.0,105300.0,0.87756328]
[1762841018692,0.2741326,105310.0,105300.0,0.75816741]
[1762841018889,0.2381126,105310.0,105300.0,0.75816741]
[1762841019095,0.23591457,105310.0,105300.0,0.75816741]
[1762841019791,0.23591457,105310.0,105300.0,1.14116741]
[1762841020092,0.23591457,105310.0,105300.0,0.90376741]
[1762841020797,0.2957326,105310.0,105300.0,0.90376741]
[1762841028997,0.2957326,105310.0,105300.0,1.83444741]
[1762841029190,0.2957326,105310.0,105300.0,2.00504979]
[1762841031499,0.2957326,105310.0,105300.0,1.85944979]
[1762841034203,0.2957326,105310.0,105300.0,1.68884741]
[1762841040706,0.2741326,105310.0,105300.0,1.68884741]
[1762841040891,0.2952626,105310.0,105300.0,1.68884741]
[1762841041097,0.2381126,105310.0,105300.0,1.68884741]
[1762841041398,0.2945426,105310.0,105300.0,1.68884741]
[1762841042704,0.2734126,105310.0,105300.0,1.68884741]
[1762841042910,0.2945426,105310.0,105300.0,1.68884741]
[1762841043810,0.2945426,105310.0,105300.0,1.91059557]
[1762841045405,0.2945426,105310.0,105300.0,2.08148068]
[1762841046304,0.2945426,105310.0,105300.0,1.85973252]
[1762841047801,0.2734126,105310.0,105300.0,1.85973252]
[1762841048204,0.05596,105320.0,105310.0,0.0949915]
[1762841048408,0.39483,105320.0,105310.0,0.5942821]
[1762841048598,0.39483,105320.0,105310.0,0.73625102]
[1762841048799,0.39483,105320.0,105310.0,0.83121327]
[1762841049401,0.39483,105320.0,105310.0,1.00209838]
[1762841050108,0.39583,105320.0,105310.0,1.00209838]
[1762841050309,0.39783,105320.0,105310.0,1.00209838]
[1762841050908,0.333,105320.0,105310.0,0.91745308]
[1762841051105,0.00014245,105330.0,105310.0,0.83121327]
[1762841051309,0.00014245,105330.0,105320.0,0.38379067]
[1762841051512,0.37014245,105330.0,105320.0,0.72379067]
[1762841051710,0.37014245,105330.0,105320.0,0.74604824]
[1762841052011,0.37014245,105330.0,105320.0,0.84100147]
[1762841053712,0.37214245,105330.0,105320.0,0.84100147]
[1762841054505,0.37014245,105330.0,105320.0,0.84100147]
[1762841055010,0.37014245,105330.0,105320.0,1.01188658]
[1762841055813,0.37014245,105330.0,105320.0,0.84100147]
[1762841057409,0.37014245,105330.0,105320.0,1.07836147]
[1762841057608,0.05583,105340.0,105330.0,0.0949735]
[1762841057810,0.36583,105340.0,105330.0,0.67353097]
[1762841058012,0.36583,105340.0,105330.0,0.81669487]
[1762841058213,0.36583,105340.0,105330.0,0.79237222]
[1762841058810,0.36683,105340.0,105330.0,0.79237222]
[1762841059207,0.36683,105340.0,105330.0,0.96275967]
[1762841059611,0.36883,105340.0,105330.0,0.96275967]
[1762841060921,0.36883,105340.0,105330.0,0.79237222]
[1762841061120,0.36883,105340.0,105330.0,0.91139934]
[1762841063223,0.05883,105340.0,105330.0,0.91139934]
[1762841063425,0.28883,105340.0,105330.0,0.91139934]
[1762841064526,0.29883,105340.0,105330.0,0.91139934]
[1762841064728,0.01594,105340.0,105330.0,0.91139934]
[1762841064923,0.003,105340.0,105330.0,0.99587076]
[1762841065826,0.05914245,105350.0,105340.0,0.0949645]
[1762841066027,0.36914245,105350.0,105340.0,1.39999184]
[1762841066218,0.36914245,105350.0,105340.0,1.71164053]
[1762841066419,0.37134048,105350.0,105340.0,1.92559384]
[1762841066627,0.37134048,105350.0,105340.0,1.746042]
[1762841067026,0.37434048,105350.0,105340.0,1.746042]
[1762841067327,0.37434048,105350.0,105340.0,1.8430065]
[1762841068625,0.37134048,105350.0,105340.0,1.8430065]
[1762841068826,0.37134048,105350.0,105340.0,1.8460065]
[1762841069329,0.37134048,105350.0,105340.0,1.751042]
[1762841070629,0.37134048,105350.0,105340.0,1.63201488]
[1762841070822,0.37134048,105350.0,105340.0,0.2424002]
[1762841071024,0.37134048,105350.0,105340.0,0.74157488]
[1762841072027,0.46629598,105350.0,105340.0,0.74157488]
[1762841073125,0.46629598,105350.0,105340.0,0.41157488]
[1762841073924,0.37134048,105350.0,105340.0,0.52157488]
[1762841074131,0.46629598,105350.0,105340.0,0.52157488]
[1762841074326,0.46629598,105350.0,105340.0,0.41157488]
[1762841074525,0.46629598,105350.0,105340.0,0.43587957]
[1762841074723,0.55088332,105350.0,105340.0,0.26670489]
[1762841074930,0.55088332,105350.0,105340.0,0.13881822]
[1762841075125,0.55088332,105350.0,105340.0,0.05423088]
[1762841075331,0.1534245,105340.0,105330.0,0.08472979]
[1762841075530,0.46562253,105340.0,105330.0,0.10589979]
[1762841075730,0.46562253,105340.0,105330.0,0.24916273]
[1762841076135,0.37065803,105340.0,105330.0,0.49725623]
[1762841076334,0.37065803,105340.0,105330.0,0.62725623]
[1762841076526,0.37165803,105340.0,105330.0,0.62725623]
[1762841077034,0.37065803,105340.0,105330.0,0.62725623]
[1762841078032,0.46762253,105340.0,105330.0,0.27228273]
[1762841078436,0.46762253,105340.0,105330.0,0.24916273]
[1762841078629,0.46762253,105340.0,105330.0,0.27228273]
[1762841078827,0.46562253,105340.0,105330.0,0.27228273]
[1762841079131,0.46662253,105340.0,105330.0,0.27228273]
[1762841079523,0.46762253,105340.0,105330.0,0.27228273]
[1762841079723,0.46662253,105340.0,105330.0,0.27228273]
[1762841079925,0.46862253,105340.0,105330.0,0.27228273]
[1762841080538,0.46762253,105340.0,105330.0,0.27228273]
[1762841080832,0.46762253,105340.0,105330.0,0.24916273]
[1762841081333,0.46662253,105340.0,105330.0,0.41228273]
[1762841081930,0.46662253,105340.0,105330.0,0.27228273]
[1762841082429,0.46662253,105340.0,105330.0,0.38228273]
[1762841082937,0.46662253,105340.0,105330.0,0.50159379]
[1762841085439,0.46662253,105340.0,105330.0,0.39159379]
[1762841085827,0.46662253,105340.0,105330.0,0.51159379]
[1762841089334,0.46662253,105340.0,105330.0,0.39228273]
[1762841089535,0.46662253,105340.0,105330.0,0.27228273]
[1762841089843,0.46662253,105340.0,105330.0,0.10589979]
[1762841090041,0.46662253,105340.0,105330.0,0.08472979]
[1762841091342,0.46662253,105340.0,105330.0,0.22715085]
[1762841091639,0.55120987,105340.0,105330.0,0.11945351]
[1762841091846,0.55120987,105340.0,105330.0,0.00014245]
[1762841096856,0.1390935,105330.0,105320.0,0.08431106]
[1762841097141,0.1518415,105310.0,105300.0,0.29913479]
[1762841097345,0.49403953,105310.0,105300.0,0.12874734]
[1762841097535,0.49403953,105310.0,105300.0,0.08458734]
[1762841098240,0.1518505,105300.0,105290.0,0.04430245]
[1762841098446,0.47404853,105300.0,105290.0,0.12888979]
[1762841103147,0.47404853,105300.0,105290.0,0.10611979]
[1762841103936,0.47404853,105300.0,105290.0,0.12888979]
[1762841104452,0.47404853,105300.0,105260.0,0.41811509]
[1762841104453,0.1391476,105270.0,105260.0,0.41811509]
[1762841104747,0.45134563,105270.0,105260.0,0.77518335]
[1762841105253,0.45134563,105270.0,105260.0,0.89438509]
[1762841105643,0.45134563,105270.0,105260.0,0.33023914]
[1762841105843,0.45134563,105270.0,105260.0,0.23728238]
[1762841106145,0.45134563,105270.0,105260.0,0.23928238]
[1762841106345,0.45134563,105270.0,105260.0,0.0701077]
[1762841106651,0.46507563,105270.0,105260.0,0.14488504]
[1762841107351,0.54966297,105270.0,105260.0,0.0161377]
[1762841108847,0.54966297,105270.0,105260.0,0.0151377]
[1762841109055,0.1391566,105260.0,105250.0,0.93086608]
[1762841109258,0.54594197,105260.0,105250.0,0.94064674]
[1762841110455,0.54694197,105260.0,105250.0,0.94464674]
[1762841110857,0.54694197,105260.0,105220.0,0.19346624]
[1762841110858,0.1391837,105230.0,105220.0,0.14255734]
[1762841111050,0.45138173,105230.0,105220.0,0.60221748]
[1762841111357,0.45138173,105230.0,105220.0,0.19989742]
[1762841111552,0.45138173,105230.0,105220.0,0.29397136]
[1762841111753,0.45138173,105230.0,105220.0,0.4985587]
[1762841111754,0.35642411,105230.0,105220.0,0.4985587]
[1762841111958,0.35642411,105230.0,105220.0,0.6485587]
[1762841112153,0.45148781,105230.0,105220.0,0.6485587]
[1762841112359,0.45148781,105230.0,105220.0,0.3815587]
[1762841112555,0.35642411,105230.0,105220.0,0.7966315]
[1762841112750,0.33367411,105230.0,105220.0,0.7966315]
[1762841112952,0.31230411,105230.0,105220.0,0.88121884]
[1762841113152,0.31230411,105230.0,105220.0,0.97625328]
[1762841113758,0.31230411,105230.0,105220.0,0.97325328]
[1762841113959,0.31630411,105230.0,105220.0,0.79459314]
[1762841114160,0.31630411,105230.0,105220.0,0.88966594]
[1762841114559,0.31630411,105230.0,105220.0,0.97425328]
[1762841114756,0.31630411,105230.0,105220.0,1.21185328]
[1762841114957,0.07806245,105240.0,105230.0,0.1530338]
[1762841115263,0.1518812,105270.0,105260.0,0.04416]
[1762841115463,0.48407923,105270.0,105260.0,0.51333468]
[1762841115661,0.48407923,105270.0,105260.0,0.23874734]
[1762841115856,0.48407923,105270.0,105260.0,0.40874734]
[1762841116459,0.48407923,105270.0,105260.0,0.04416]
[1762841116665,0.48407923,105270.0,105260.0,0.37874734]
[1762841117659,0.47134923,105270.0,105260.0,0.42714468]
[1762841117862,0.38531803,105270.0,105260.0,0.57058791]
[1762841118163,0.36256803,105270.0,105260.0,0.57058791]
[1762841118367,0.49307563,105270.0,105260.0,0.27219057]
[1762841118860,0.49307563,105270.0,105260.0,0.35677791]
[1762841119066,0.49307563,105270.0,105260.0,0.27219057]
[1762841119763,0.48607563,105270.0,105260.0,0.27119057]
[1762841119965,0.48907563,105270.0,105260.0,0.27219057]
[1762841120267,0.47634563,105270.0,105260.0,0.64983791]
[1762841121058,0.38131803,105270.0,105260.0,0.64983791]
[1762841121759,0.48957563,105270.0,105260.0,0.18760323]
[1762841121965,0.48957563,105270.0,105260.0,0.27219057]
[1762841122465,0.0950366,105260.0,105250.0,0.00014245]
[1762841122668,0.0950457,105250.0,105240.0,0.01306]
[1762841122860,0.55183107,105250.0,105240.0,0.03563]
[1762841123061,0.55183107,105250.0,105240.0,0.05782]
[1762841123671,0.55183107,105250.0,105240.0,0.01306]
[1762841123870,0.0950547,105240.0,105230.0,0.14315734]
[1762841124167,0.55184007,105240.0,105230.0,0.14315734]
[1762841124873,0.55184007,105240.0,105230.0,0.05857]
[1762841124874,0.46725273,105240.0,105230.0,0.05857]
[1762841125055,0.46725273,105240.0,105230.0,0.01381]
[1762841125261,0.0950637,105230.0,105220.0,0.0225466]
[1762841125456,0.41726173,105230.0,105220.0,0.0225466]
[1762841125865,0.41726173,105230.0,105220.0,0.0451166]
[1762841126663,0.0950909,105200.0,105190.0,0.05790157]
[1762841126864,0.44728893,105200.0,105190.0,0.05790157]
[1762841127266,0.44728893,105200.0,105190.0,0.01314157]
[1762841127464,0.0951089,105180.0,105170.0,0.05782]
[1762841127772,0.46730693,105180.0,105170.0,0.20108173]
[1762841128161,0.46730693,105180.0,105170.0,0.03563]
[1762841128466,0.095127,105160.0,105140.0,0.06885882]
[1762841128667,0.09733413,105150.0,105140.0,0.06885882]
[1762841128871,0.46733413,105150.0,105140.0,0.21227372]
[1762841129165,0.00014245,105160.0,105150.0,0.05782]
[1762841129369,0.36234048,105160.0,105150.0,0.05782]
[1762841129563,0.36234048,105160.0,105150.0,0.18782]
[1762841129763,0.36234048,105160.0,105150.0,0.4129561]
[1762841129967,0.36234048,105160.0,105150.0,0.31782]
[1762841130371,0.36234048,105160.0,105150.0,0.46117033]
[1762841130670,0.36014245,105160.0,105150.0,0.65140414]
[1762841130876,8.157e-05,105180.0,105170.0,0.05782]
[1762841131068,0.3122796,105180.0,105170.0,0.31782]
[1762841131269,0.4073885,105180.0,105170.0,0.03563]
[1762841131471,0.4073885,105180.0,105170.0,0.05782]
[1762841131674,0.4073885,105180.0,105170.0,0.18782]
[1762841131875,0.4073885,105180.0,105170.0,0.05782]
[1762841132375,0.4073885,105180.0,105160.0,0.01320245]
[1762841132376,0.095118,105170.0,105160.0,0.01320245]
[1762841132677,0.46731603,105170.0,105160.0,0.01320245]
[1762841132870,0.62280371,105170.0,105160.0,0.00014245]
[1762841133769,0.0951361,105150.0,105140.0,0.07847]
[1762841133970,0.33219803,105150.0,105140.0,0.10066]
[1762841134272,0.42733413,105150.0,105140.0,0.10066]
[1762841134868,0.42733413,105150.0,105140.0,0.11165172]
[1762841135280,0.42733413,105150.0,105140.0,0.05383172]
[1762841135775,0.42733413,105150.0,105140.0,0.04284]
[1762841135974,0.33219803,105150.0,105140.0,0.06541]
[1762841136177,0.33219803,105150.0,105140.0,0.0876]
[1762841136679,0.33219803,105150.0,105140.0,0.3576]
[1762841136881,0.33219803,105150.0,105140.0,0.75137884]
[1762841137267,0.33219803,105150.0,105140.0,0.23174606]
[1762841137474,0.33219803,105150.0,105140.0,0.51174606]
[1762841137965,0.42733413,105150.0,105140.0,0.23174606]
[1762841138169,0.33219803,105150.0,105140.0,0.39174606]
[1762841138369,0.33219803,105150.0,105140.0,0.23174606]
[1762841138569,0.42733413,105150.0,105140.0,0.23174606]
[1762841138780,0.4274157,105150.0,105140.0,0.23174606]
[1762841140074,0.3322796,105150.0,105140.0,0.36174606]
[1762841140281,0.4274157,105150.0,105140.0,0.36174606]
[1762841140676,0.3322796,105150.0,105140.0,0.51174606]
[1762841141674,0.4274157,105150.0,105140.0,0.23174606]
[1762841141878,0.4274157,105150.0,105140.0,0.53174606]
[1762841142080,0.3322796,105150.0,105140.0,0.53174606]
[1762841142587,0.3322796,105150.0,105140.0,0.68723374]
[1762841142787,0.3322796,105150.0,105140.0,0.53174606]
[1762841143988,0.33008157,105150.0,105140.0,0.92499374]
[1762841144288,0.4274157,105150.0,105140.0,0.35174606]
[1762841144478,0.4274157,105150.0,105140.0,0.23174606]
[1762841144678,0.3322796,105150.0,105140.0,0.35174606]
[1762841144879,0.3322796,105150.0,105140.0,0.23174606]
[1762841145079,0.3322796,105150.0,105140.0,0.50174606]
[1762841145281,0.3322796,105150.0,105140.0,0.59689116]
[1762841145579,0.3322796,105150.0,105140.0,0.75237884]
[1762841146177,0.3322796,105150.0,105140.0,0.76543884]
[1762841146383,0.4274157,105150.0,105140.0,0.24480606]
[1762841146579,0.3322796,105150.0,105140.0,0.32196606]
[1762841146882,0.4274157,105150.0,105140.0,0.20196606]
[1762841147081,0.4274157,105150.0,105140.0,0.33196606]
[1762841147281,0.4274157,105150.0,105140.0,0.20196606]
[1762841147788,0.4274157,105150.0,105140.0,1.13404606]
[1762841147989,0.3322796,105150.0,105140.0,1.47404606]
[1762841148179,0.4274157,105150.0,105140.0,1.13404606]
[1762841148786,0.3322796,105150.0,105140.0,1.43404606]
[1762841149090,0.33008157,105150.0,105140.0,1.68467884]
[1762841149589,0.00014245,105160.0,105150.0,0.1520361]
[1762841149892,0.35014245,105160.0,105150.0,0.74923818]
[1762841150187,0.0406,105180.0,105170.0,0.0129]
[1762841150382,0.46790693,105180.0,105170.0,0.0569]
[1762841150585,0.46790693,105180.0,105170.0,0.20021565]
[1762841151589,0.37279803,105180.0,105170.0,0.33021565]
[1762841152293,0.47090693,105180.0,105170.0,0.20121565]
[1762841152488,0.47290693,105180.0,105170.0,0.20121565]
[1762841153488,0.47290693,105180.0,105170.0,0.31121565]
[1762841153698,0.47290693,105180.0,105170.0,0.20121565]
[1762841153892,0.37779803,105180.0,105170.0,0.33121565]
[1762841154193,0.37779803,105180.0,105170.0,0.48121565]
[1762841156084,0.33719803,105180.0,105170.0,0.73182133]
[1762841157098,0.335,105180.0,105170.0,0.73182133]
[1762841157290,0.335,105180.0,105170.0,0.82690095]
[1762841160394,0.33719803,105180.0,105170.0,0.73178295]
[1762841160803,0.47290693,105180.0,105170.0,0.29121565]
[1762841161700,0.438666,105180.0,105170.0,0.29121565]
[1762841162099,0.438666,105180.0,105170.0,0.1479]
[1762841162501,0.438666,105180.0,105170.0,0.0579]
[1762841162693,0.448816,105180.0,105170.0,0.001]
[1762841163803,0.133718,105170.0,105160.0,0.00014245]
[1762841164003,0.59140371,105170.0,105160.0,0.00014245]
[1762841164195,0.43591603,105170.0,105160.0,0.00014245]
[1762841164693,0.46152777,105170.0,105160.0,0.00014245]
[1762841165303,0.46252777,105170.0,105160.0,0.00014245]
[1762841165495,0.46452777,105170.0,105160.0,0.00114245]
[1762841166890,0.46452777,105170.0,105140.0,0.04282]
[1762841166891,0.1394661,105150.0,105140.0,0.04282]
[1762841167095,0.48166413,105150.0,105140.0,0.09934]
[1762841168097,0.48166413,105150.0,105140.0,0.10034]
[1762841168499,0.48166413,105150.0,105140.0,0.06504]
[1762841169304,0.48166413,105150.0,105140.0,0.04382]
[1762841169499,0.48166413,105150.0,105140.0,0.06534]
[1762841169500,0.47365413,105150.0,105140.0,0.06534]
[1762841171003,0.47365413,105150.0,105140.0,0.00882]
[1762841171194,0.47365413,105150.0,105140.0,0.02203]
[1762841171899,0.47365413,105150.0,105140.0,0.03543]
[1762841172098,0.47365413,105150.0,105140.0,0.01421]
[1762841173406,0.47365413,105150.0,105140.0,0.03543]
[1762841173607,0.47365413,105150.0,105140.0,0.31752]
[1762841173806,0.47365413,105150.0,105140.0,0.61621757]
[1762841174003,0.45549413,105150.0,105140.0,0.61621757]
[1762841174210,0.45549413,105150.0,105140.0,0.46072989]
[1762841174407,0.45549413,105150.0,105140.0,0.47072989]
[1762841175510,0.34219803,105150.0,105140.0,0.62621757]
[1762841176303,0.34219803,105150.0,105140.0,0.47072989]
[1762841176704,0.43733413,105150.0,105140.0,0.47072989]
[1762841176904,0.34219803,105150.0,105140.0,0.47072989]
[1762841177509,0.43733413,105150.0,105140.0,0.47072989]
[1762841178212,0.34219803,105150.0,105140.0,0.47072989]
[1762841178605,0.34219803,105150.0,105140.0,0.62621757]
[1762841179410,0.43733413,105150.0,105140.0,0.35621757]
[1762841179805,0.34219803,105150.0,105140.0,0.62621757]
[1762841180206,0.34219803,105150.0,105140.0,0.72136267]
[1762841181206,0.00014245,105160.0,105150.0,0.1519461]
[1762841181405,0.03002353,105160.0,105150.0,0.67863456]
[1762841181604,0.03002353,105160.0,105150.0,1.01877311]
[1762841181809,3.53e-06,105160.0,105150.0,0.9948406]
[1762841182011,0.121444,105190.0,105180.0,0.05811]
[1762841182206,0.48364203,105190.0,105180.0,0.02252]
[1762841182408,0.1214489,105180.0,105170.0,0.14330018]
[1762841182615,0.49364693,105180.0,105170.0,0.14330018]
[1762841184618,0.49464693,105180.0,105170.0,0.14330018]
[1762841185120,0.49464693,105180.0,105170.0,0.24519018]
[1762841185318,0.49464693,105180.0,105170.0,0.08475197]
[1762841185319,0.49664693,105180.0,105170.0,0.08475197]
[1762841185521,0.49664693,105180.0,105160.0,0.11940871]
[1762841185522,0.095118,105170.0,105160.0,0.20459755]
[1762841185715,0.095127,105160.0,105150.0,0.01281]
[1762841185915,0.45732503,105160.0,105150.0,0.01281]
[1762841186112,0.45732503,105160.0,105150.0,0.05811]
[1762841186519,0.36219803,105160.0,105150.0,0.21359768]
[1762841186820,0.36219803,105160.0,105150.0,0.06811]
[1762841187025,0.36219803,105160.0,105150.0,0.30696971]
[1762841187218,0.00314245,105170.0,105160.0,0.0453]
[1762841187417,0.33534048,105170.0,105160.0,0.32143521]
[1762841187616,0.33234048,105170.0,105160.0,0.46415971]
[1762841188017,0.33234048,105170.0,105160.0,0.29415971]
[1762841188218,0.42745848,105170.0,105160.0,0.29415971]
[1762841188523,0.42945848,105170.0,105160.0,0.1880245]
[1762841189022,0.095127,105160.0,105150.0,0.05911]
[1762841189323,0.39732503,105160.0,105150.0,0.01281]
[1762841189620,0.0951361,105150.0,105140.0,0.01281]
[1762841189922,0.43733413,105150.0,105140.0,0.01281]
[1762841190318,0.43733413,105150.0,105140.0,0.03533]
[1762841190815,0.43733413,105150.0,105140.0,0.01281]
[1762841191334,0.0951451,105140.0,105130.0,0.04317922]
[1762841191536,0.39734313,105140.0,105130.0,0.04317922]
[1762841191728,0.39734313,105140.0,105130.0,0.18671667]
[1762841191930,0.39734313,105140.0,105130.0,0.06595922]
[1762841192929,0.39734313,105140.0,105130.0,0.06695922]
[1762841193126,0.39734313,105140.0,105130.0,0.02165922]
[1762841193325,0.39734313,105140.0,105130.0,0.06695922]
[1762841193537,0.39734313,105140.0,105130.0,0.17409443]
[1762841193730,0.30219803,105140.0,105130.0,0.46621907]
[1762841193925,0.00014245,105150.0,105130.0,0.67607327]
[1762841194129,0.34234048,105150.0,105140.0,0.15143521]
[1762841194332,0.34234048,105150.0,105140.0,0.27070147]
[1762841194333,0.43747658,105150.0,105140.0,0.27070147]
[1762841194531,0.43747658,105150.0,105140.0,0.41282611]
[1762841195029,0.34234048,105150.0,105140.0,0.41282611]
[1762841195232,0.34234048,105150.0,105140.0,0.67282611]
[1762841195432,0.34234048,105150.0,105140.0,0.55355985]
[1762841195934,0.34334048,105150.0,105140.0,0.55455985]
[1762841196842,0.43847658,105150.0,105140.0,0.44842464]
[1762841197141,0.34334048,105150.0,105140.0,0.55455985]
[1762841198842,0.01614245,105150.0,105140.0,0.64970495]
[1762841199039,0.095124,105170.0,105160.0,0.05811]
[1762841199344,0.41731603,105170.0,105160.0,0.16424521]
[1762841199739,0.32219803,105170.0,105160.0,0.54362752]
[1762841199935,0.32,105170.0,105160.0,0.6864735]
[1762841200137,0.322,105170.0,105160.0,0.6864735]
[1762841200839,0.322,105170.0,105160.0,1.12545571]
[1762841201040,0.322,105170.0,105160.0,0.6732264]
[1762841201441,0.322,105170.0,105160.0,0.89989986]
[1762841201650,0.326,105170.0,105160.0,0.86444207]
[1762841201838,0.326,105170.0,105160.0,0.79476465]
[1762841202038,0.326,105170.0,105160.0,0.90089986]
[1762841202643,0.326,105170.0,105160.0,1.69042686]
[1762841202844,0.066,105170.0,105160.0,1.69042686]
[1762841203545,0.066,105170.0,105160.0,1.79656207]
[1762841204143,0.00014245,105180.0,105170.0,0.140418]
[1762841204339,0.42794135,105180.0,105170.0,0.29459743]
[1762841204538,0.45213938,105180.0,105170.0,0.54360206]
[1762841204934,0.09014245,105180.0,105170.0,0.83872006]
[1762841205243,0.33014245,105180.0,105170.0,0.81450225]
[1762841205442,0.33014245,105180.0,105170.0,0.93379968]
[1762841205845,0.33814245,105180.0,105170.0,0.81550225]
[1762841206048,0.33814245,105180.0,105170.0,0.82831225]
[1762841206241,0.33814245,105180.0,105170.0,0.94756701]
[1762841206649,0.04814245,105180.0,105170.0,0.82831225]
[1762841206845,0.04814245,105180.0,105170.0,0.94755825]
[1762841207245,0.04514245,105180.0,105170.0,0.94755825]
[1762841207555,0.04014245,105180.0,105170.0,0.94855825]
[1762841207750,0.04114245,105180.0,105170.0,1.19023825]
[1762841208147,0.04091342,105180.0,105170.0,1.19023825]
[1762841208342,0.1536387,105210.0,105200.0,0.0453]
[1762841208652,0.48583673,105210.0,105200.0,0.16424521]
[1762841209151,0.37688803,105210.0,105200.0,0.42424521]
[1762841209353,0.47196983,105210.0,105200.0,0.42424521]
[1762841209552,0.47296983,105210.0,105200.0,0.42424521]
[1762841209752,0.37788803,105210.0,105200.0,0.42424521]
[1762841210246,0.37788803,105210.0,105200.0,0.56717254]
[1762841210553,0.37688803,105210.0,105200.0,0.56717254]
[1762841210949,0.48500983,105210.0,105200.0,0.14292733]
[1762841211152,0.1523309,105200.0,105190.0,0.04405245]
[1762841211352,0.51452893,105200.0,105190.0,0.00014245]
[1762841211753,0.62066414,105200.0,105190.0,0.00014245]
[1762841212254,0.0442,105180.0,105170.0,0.16285521]
[1762841212455,0.46150693,105180.0,105170.0,0.43285521]
[1762841212650,0.46150693,105180.0,105170.0,0.57470899]
[1762841213051,0.32219803,105180.0,105170.0,0.66982699]
[1762841213258,0.3,105180.0,105170.0,0.76490661]
[1762841213452,0.3,105180.0,105170.0,0.76590661]
[1762841214143,0.3,105180.0,105170.0,0.67078861]
[1762841214457,0.00219803,105180.0,105170.0,0.67278861]
[1762841214655,0.36219803,105180.0,105170.0,0.67278861]
[1762841214855,0.40639803,105180.0,105170.0,0.67278861]
[1762841215067,0.38488803,105180.0,105170.0,0.67278861]
[1762841217058,0.38488803,105180.0,105170.0,0.67278861]